fUSD/lending_fUSD_20240104
["ID","MTS","AMOUNT","RATE_DAILY","PERIOD"]
[310183981,1704391866028,-500.0,0.00033698,2]
[310183982,1704391866038,-690.99,0.00033698,2]
[310183983,1704391866100,-500.0,0.00033698,2]
[310183984,1704391866111,-217.11414298,0.00033698,2]
[310183985,1704391866121,-500.0,0.00033698,2]
[310183986,1704391866131,-500.0,0.00033698,2]
[310183987,1704391866141,-500.0,0.00033698,2]
[310183988,1704391866152,-500.0,0.00033698,2]
[310183989,1704391866163,-454.83148777,0.00033698,2]
[310183990,1704391866172,-654.12,0.00033698,2]
[310183991,1704391866183,-500.0,0.00033698,2]
[310183992,1704391866192,-1200.44,0.00033698,2]
[310183993,1704391866203,-653.66,0.00033698,2]
[310183994,1704391866213,-684.74,0.00033698,2]
[310183995,1704391866223,-541.71902057,0.00033698,2]
[310183996,1704391866234,-628.61,0.00033698,2]
[310183997,1704391866244,-500.0,0.00033698,2]
[310183998,1704391866256,-622.23,0.00033698,2]
[310183999,1704391866266,-507.84,0.00033698,2]
[310184000,1704391866275,-500.0,0.00033698,2]
[310184001,1704391866285,-1255.77,0.00033698,2]
[310184002,1704391866295,-500.0,0.00033698,2]
[310184003,1704391866305,-500.0,0.00033698,2]
[310184004,1704391866315,-500.0,0.00033698,2]
[310184005,1704391866325,-500.0,0.00033698,2]
[310184006,1704391866335,-1377.38,0.00033698,2]
[310184007,1704391866345,-2685.56,0.00033698,2]
[310184008,1704391866355,-500.0,0.00033698,2]
[310184009,1704391866365,-368.40186518,0.00033698,2]
[310184010,1704391866375,-600.10936385,0.00033698,2]
[310184011,1704391866385,-500.0,0.00033698,2]
[310184012,1704391866394,-500.0,0.00033698,2]
[310184013,1704391866405,-593.27,0.00033698,2]
[310184014,1704391866414,-500.0,0.00033698,2]
[310184015,1704391866424,-1194.73,0.00033698,2]
[310184016,1704391866434,-500.0,0.00033698,2]
[310184017,1704391866445,-500.0,0.00033698,2]
[310184018,1704391866455,-1686.86,0.00033698,2]
[310184019,1704391866464,-500.0,0.00033698,2]
[310184020,1704391866475,-573.18,0.00033698,2]
[310184021,1704391866484,-500.0,0.00033698,2]
[310184022,1704391866495,-500.0,0.00033698,2]
[310184023,1704391866507,-2139.14,0.00033698,2]
[310184024,1704391866517,-521.94258942,0.00033698,2]
[310184026,1704391866528,-928.63,0.00033698,2]
[310184027,1704391866539,-2176.43,0.00033698,2]
[310184028,1704391866550,-500.0,0.00033698,2]
[310184029,1704391866560,-500.0,0.00033698,2]
[310184030,1704391866570,-631.71,0.00033698,2]
[310184031,1704391866581,-585.710726,0.00033698,2]
[310184032,1704391866591,-588.14,0.00033698,2]
[310184033,1704391866601,-809.18,0.00033698,2]
[310184034,1704391866612,-774.86,0.00033698,2]
[310184035,1704391866621,-500.0,0.00033698,2]
[310184036,1704391866631,-384.0,0.00033723,2]
[310184037,1704391866641,-1093.12899118,0.00033827,6]
[310184038,1704391866651,-160.08929011,0.00033969,2]
[310184039,1704391866662,-500.0,0.00033971,2]
[310184040,1704391866672,-525.16,0.00033971,2]
[310184041,1704391866682,-1305.07,0.00033971,2]
[310184042,1704391866692,-743.73,0.00033971,2]
[310184043,1704391866703,-500.0,0.00033971,2]
[310184044,1704391866715,-500.0,0.00033971,2]
[310184045,1704391866724,-724.23,0.00033971,2]
[310184046,1704391866734,-546.17,0.00033971,2]
[310184047,1704391866744,-604.17,0.00033971,2]
[310184048,1704391866755,-500.0,0.00033972,2]
[310184049,1704391866765,-500.0,0.00033972,2]
[310184050,1704391866776,-500.0,0.00033972,2]
[310184051,1704391866786,-500.0,0.00033972,2]
[310184052,1704391866796,-500.0,0.00033972,2]
[310184053,1704391866805,-500.0,0.00033972,2]
[310184054,1704391866815,-500.0,0.00033972,2]
[310184055,1704391866825,-167.65552868,0.00033972,2]
[310184056,1704391866835,-500.0,0.00033972,2]
[310184057,1704391866844,-500.0,0.00033972,2]
[310184058,1704391866854,-500.0,0.00033972,2]
[310184059,1704391866864,-500.0,0.00033972,2]
[310184060,1704391866874,-500.0,0.00033972,2]
[310184061,1704391866885,-500.0,0.00033972,2]
[310184062,1704391866895,-500.0,0.00033972,2]
[310184063,1704391866906,-500.0,0.00033972,2]
[310184064,1704391866916,-500.0,0.00033972,2]
[310184065,1704391866926,-500.0,0.00033972,2]
[310184066,1704391866936,-500.0,0.00033972,2]
[310184067,1704391866948,-500.0,0.00033972,2]
[310184068,1704391866958,-500.0,0.00033972,2]
[310184069,1704391866968,-500.0,0.00033972,2]
[310184070,1704391866978,-514.01930476,0.00033972,2]
[310184071,1704391866989,-500.0,0.00033972,2]
[310184072,1704391866998,-500.0,0.00033972,2]
[310184073,1704391867009,-500.0,0.00033972,2]
[310184074,1704391867020,-500.0,0.00033972,2]
[310184075,1704391867030,-500.0,0.00033972,2]
[310184076,1704391867041,-500.0,0.00033972,2]
[310184077,1704391867051,-500.0,0.00033972,2]
[310184078,1704391867061,-502.00647885,0.00033972,2]
[310184079,1704391867071,-500.0,0.00033972,2]
[310184080,1704391867080,-500.0,0.00033972,2]
[310184081,1704391867091,-500.0,0.00033972,2]
[310184082,1704391867101,-622.63,0.00033972,2]
[310184083,1704391867114,-500.0,0.00033972,2]
[310184084,1704391867124,-500.0,0.00033972,2]
[310184085,1704391867134,-574.03966143,0.00033972,2]
[310184086,1704391867143,-500.0,0.00033972,2]
[310184087,1704391867154,-471.51133901,0.00033972,2]
[310184088,1704391867165,-590.42,0.00033972,2]
[310184089,1704391867175,-500.0,0.00033972,2]
[310184090,1704391867186,-500.0,0.00033972,2]
[310184091,1704391867196,-500.0,0.00033972,2]
[310184092,1704391867207,-500.0,0.00033972,2]
[310184093,1704391867217,-500.0,0.00033972,2]
[310184094,1704391867226,-500.0,0.00033972,2]
[310184095,1704391867237,-500.0,0.00033972,2]
[310184096,1704391867246,-500.0,0.00033972,2]
[310184097,1704391867257,-500.0,0.00033972,2]
[310184098,1704391867267,-500.0,0.00033972,2]
[310184099,1704391867277,-500.0,0.00033972,2]
[310184100,1704391867289,-480.0,0.00033972,2]
[310184101,1704391867299,-500.0,0.00033972,2]
[310184102,1704391867309,-510.24508714,0.00033972,2]
[310184103,1704391867319,-500.0,0.00033972,2]
[310184104,1704391867329,-500.0,0.00033972,2]
[310184105,1704391867339,-500.0,0.00033972,2]
[310184106,1704391867349,-500.0,0.00033972,2]
[310184107,1704391867359,-542.54,0.00033972,2]
[310184108,1704391867369,-500.0,0.00033972,2]
[310184109,1704391867379,-500.0,0.00033972,2]
[310184110,1704391867389,-500.0,0.00033972,2]
[310184111,1704391867398,-500.0,0.00033972,2]
[310184112,1704391867408,-500.0,0.00033972,2]
[310184113,1704391867417,-500.0,0.00033972,2]
[310184114,1704391867427,-500.0,0.00033972,2]
[310184115,1704391867439,-500.0,0.00033972,2]
[310184116,1704391867449,-500.0,0.00033972,2]
[310184117,1704391867459,-500.0,0.00033972,2]
[310184118,1704391867469,-500.0,0.00033972,2]
[310184119,1704391867480,-500.0,0.00033972,2]
[310184120,1704391867491,-500.0,0.00033972,2]
[310184121,1704391867504,-500.0,0.00033972,2]
[310184122,1704391867515,-500.0,0.00033972,2]
[310184123,1704391867525,-500.0,0.00033972,2]
[310184124,1704391867536,-500.0,0.00033972,2]
[310184125,1704391867547,-500.0,0.00033972,2]
[310184126,1704391867559,-500.0,0.00033972,2]
[310184127,1704391867571,-500.0,0.00033972,2]
[310184128,1704391867584,-500.0,0.00033972,2]
[310184129,1704391867595,-500.0,0.00033972,2]
[310184130,1704391867605,-500.0,0.00033972,2]
[310184131,1704391867615,-500.0,0.00033972,2]
[310184132,1704391867625,-743.6,0.00033972,2]
[310184133,1704391867635,-500.0,0.00033972,2]
[310184134,1704391867646,-500.0,0.00033972,2]
[310184135,1704391867656,-500.0,0.00033972,2]
[310184136,1704391867666,-500.0,0.00033972,2]
[310184137,1704391867676,-500.0,0.00033972,2]
[310184138,1704391867685,-500.0,0.00033972,2]
[310184139,1704391867696,-500.0,0.00033972,2]
[310184140,1704391867710,-500.0,0.00033972,2]
[310184141,1704391867724,-500.0,0.00033972,2]
[310184142,1704391867735,-500.0,0.00033972,2]
[310184143,1704391867746,-500.0,0.00033972,2]
[310184144,1704391867757,-500.0,0.00033972,2]
[310184145,1704391867767,-500.0,0.00033972,2]
[310184146,1704391867777,-500.0,0.00033972,2]
[310184147,1704391867788,-500.0,0.00033972,2]
[310184148,1704391867798,-574.13,0.00033972,2]
[310184149,1704391867809,-500.0,0.00033972,2]
[310184150,1704391867819,-500.0,0.00033972,2]
[310184151,1704391867830,-500.0,0.00033972,2]
[310184152,1704391867841,-500.0,0.00033972,2]
[310184153,1704391867851,-500.0,0.00033972,2]
[310184154,1704391867861,-500.0,0.00033972,2]
[310184155,1704391867872,-500.0,0.00033972,2]
[310184156,1704391867882,-500.0,0.00033972,2]
[310184157,1704391867892,-614.46,0.00033972,2]
[310184158,1704391867902,-500.0,0.00033972,2]
[310184159,1704391867912,-500.0,0.00033972,2]
[310184160,1704391867921,-500.0,0.00033972,2]
[310184161,1704391867931,-500.0,0.00033972,2]
[310184162,1704391867942,-500.0,0.00033972,2]
[310184163,1704391867952,-500.0,0.00033972,2]
[310184164,1704391867962,-500.0,0.00033972,2]
[310184165,1704391867973,-500.0,0.00033972,2]
[310184166,1704391867984,-519.26,0.00033972,2]
[310184167,1704391867994,-500.0,0.00033972,2]
[310184168,1704391868005,-153.69594427,0.00033972,2]
[310184169,1704391868015,-500.0,0.00033972,2]
[310184170,1704391868025,-585.74,0.00033972,2]
[310184171,1704391868036,-500.0,0.00033972,2]
[310184172,1704391868046,-500.0,0.00033972,2]
[310184173,1704391868056,-500.0,0.00033972,2]
[310184174,1704391868066,-668.16,0.00033972,2]
[310184175,1704391868076,-500.0,0.00033972,2]
[310184176,1704391868086,-500.0,0.00033972,2]
[310184177,1704391868096,-150.0,0.00033972,2]
[310184178,1704391868106,-500.0,0.00033972,2]
[310184179,1704391868116,-500.0,0.00033972,2]
[310184180,1704391868127,-500.0,0.00033972,2]
[310184181,1704391868137,-500.0,0.00033972,2]
[310184182,1704391868147,-828.64,0.00033972,2]
[310184183,1704391868158,-500.0,0.00033972,2]
[310184184,1704391868168,-500.76039127,0.00033972,2]
[310184185,1704391868179,-564.5,0.00033972,2]
[310184186,1704391868191,-443.80750231,0.00033972,2]
[310184187,1704391868428,-500.0,0.00033972,2]
[310184188,1704391868438,-500.0,0.00033972,2]
[310184189,1704391868448,-500.0,0.00033972,2]
[310184190,1704391868457,-500.0,0.00033972,2]
[310184191,1704391868466,-500.0,0.00033972,2]
[310184192,1704391868475,-500.0,0.00033972,2]
[310184193,1704391868484,-500.0,0.00033972,2]
[310184194,1704391868494,-500.0,0.00033972,2]
[310184195,1704391868505,-531.42362062,0.00033972,2]
[310184196,1704391868514,-500.0,0.00033972,2]
[310184197,1704391868523,-500.0,0.00033972,2]
[310184198,1704391868532,-500.0,0.00033972,2]
[310184199,1704391868541,-500.0,0.00033972,2]
[310184200,1704391868551,-500.0,0.00033972,2]
[310184201,1704391868561,-496.75118848,0.00033972,2]
[310184202,1704391868570,-500.0,0.00033972,2]
[310184203,1704391868579,-500.0,0.00033972,2]
[310184204,1704391868589,-500.0,0.00033972,2]
[310184205,1704391868598,-500.0,0.00033972,2]
[310184206,1704391868608,-246.7190964,0.00033972,2]
[310184207,1704391868618,-500.0,0.00033972,2]
[310184208,1704391868627,-500.0,0.00033972,2]
[310184209,1704391868637,-500.0,0.00033972,2]
[310184210,1704391868647,-500.0,0.00033972,2]
[310184211,1704391868657,-500.0,0.00033972,2]
[310184212,1704391868666,-500.0,0.00033972,2]
[310184213,1704391868676,-500.0,0.00033972,2]
[310184214,1704391868685,-255.11510065,0.00033972,2]
[310184215,1704391868696,-768.1,0.00033972,2]
[310184216,1704391868707,-500.0,0.00033972,2]
[310184217,1704391868716,-500.0,0.00033972,2]
[310184218,1704391868725,-500.0,0.00033972,2]
[310184219,1704391868734,-2078.0,0.00033972,2]
[310184220,1704391868744,-500.0,0.00033972,2]
[310184221,1704391868756,-500.0,0.00033972,2]
[310184222,1704391868768,-500.0,0.00033972,2]
[310184223,1704391868778,-500.0,0.00033972,2]
[310184224,1704391868789,-3169.07,0.00033972,2]
[310184225,1704391868798,-500.0,0.00033972,2]
[310184226,1704391868807,-564.23,0.00033972,2]
[310184227,1704391868817,-544.7,0.00033972,2]
[310184228,1704391868826,-1872.29,0.00033972,2]
[310184229,1704391868835,-500.0,0.00033972,2]
[310184230,1704391868846,-500.0,0.00033972,2]
[310184231,1704391868855,-500.0,0.00033972,2]
[310184232,1704391868866,-917.28,0.00033972,2]
[310184233,1704391868876,-1979.92,0.00033972,2]
[310184234,1704391868887,-500.0,0.00033972,2]
[310184235,1704391868897,-1555.86,0.00033972,2]
[310184236,1704391868907,-500.0,0.00033972,2]
[310184237,1704391868917,-500.0,0.00033972,2]
[310184238,1704391868926,-500.0,0.00033972,2]
[310184239,1704391868936,-500.0,0.00033972,2]
[310184240,1704391868946,-697.74,0.00033972,2]
[310184241,1704391868956,-5130.26,0.00033972,2]
[310184242,1704391868966,-1987.52,0.00033972,2]
[310184243,1704391868976,-500.0,0.00033972,2]
[310184244,1704391868987,-532.99,0.00033972,2]
[310184245,1704391868996,-500.0,0.00033972,2]
[310184246,1704391869007,-500.0,0.00033972,2]
[310184247,1704391869017,-623.11,0.00033972,2]
[310184248,1704391869027,-2073.7,0.00033972,2]
[310184249,1704391869036,-500.0,0.00033972,2]
[310184250,1704391869046,-1091.76,0.00033972,2]
[310184251,1704391869055,-500.0,0.00033972,2]
[310184252,1704391869065,-500.0,0.00033972,2]
[310184253,1704391869076,-4803.24,0.00033972,2]
[310184254,1704391869086,-500.0,0.00033972,2]
[310184255,1704391869095,-1675.45,0.00033972,2]
[310184256,1704391869104,-500.0,0.00033972,2]
[310184257,1704391869114,-1478.74,0.00033972,2]
[310184258,1704391869124,-500.0,0.00033972,2]
[310184260,1704391869134,-500.0,0.00033972,2]
[310184261,1704391869143,-1341.28,0.00033972,2]
[310184262,1704391869153,-1001.4,0.00033972,2]
[310184263,1704391869163,-500.0,0.00033972,2]
[310184264,1704391869172,-500.0,0.00033972,2]
[310184265,1704391869182,-13332.5,0.00033972,2]
[310184266,1704391869191,-500.0,0.00033972,2]
[310184267,1704391869201,-500.0,0.00033972,2]
[310184268,1704391869210,-903.8,0.00033972,2]
[310184269,1704391869220,-500.0,0.00033972,2]
[310184270,1704391869229,-500.0,0.00033972,2]
[310184271,1704391869239,-2022.15,0.00033972,2]
[310184272,1704391869249,-500.0,0.00033972,2]
[310184273,1704391869259,-500.0,0.00033972,2]
[310184274,1704391869269,-500.0,0.00033972,2]
[310184275,1704391869278,-1645.99,0.00033972,2]
[310184276,1704391869287,-500.0,0.00033972,2]
[310184277,1704391869296,-500.0,0.00033972,2]
[310184278,1704391869306,-500.0,0.00033972,2]
[310184279,1704391869316,-500.0,0.00033972,2]
[310184280,1704391869325,-2061.73,0.00033972,2]
[310184281,1704391869335,-500.0,0.00033972,2]
[310184282,1704391869344,-500.0,0.00033972,2]
[310184283,1704391869353,-500.0,0.00033972,2]
[310184284,1704391869363,-675.09,0.00033972,2]
[310184285,1704391869374,-500.0,0.00033972,2]
[310184286,1704391869385,-500.0,0.00033972,2]
[310184287,1704391869394,-500.0,0.00033972,2]
[310184288,1704391869403,-2258.51,0.00033972,2]
[310184289,1704391869413,-505.16005856,0.00033972,2]
[310184290,1704391869422,-925.28,0.00033972,2]
[310184291,1704391869432,-500.0,0.00033972,2]
[310184292,1704391869441,-741.55,0.00033972,2]
[310184293,1704391869451,-507.98392963,0.00033972,2]
[310184294,1704391869482,-500.0,0.00033972,2]
[310184295,1704391869490,-465.68,0.00033972,2]
[310184296,1704391869500,-500.0,0.00033972,2]
[310184297,1704391869509,-2821.32,0.00033972,2]
[310184298,1704391869519,-500.0,0.00033972,2]
[310184299,1704391869528,-1168.47,0.00033972,2]
[310184300,1704391869537,-500.0,0.00033972,2]
[310184301,1704391869548,-500.0,0.00033972,2]
[310184302,1704391869557,-580.48,0.00033972,2]
[310184303,1704391869566,-500.0,0.00033972,2]
[310184304,1704391869576,-500.0,0.00033972,2]
[310184305,1704391869586,-500.0,0.00033972,2]
[310184306,1704391869598,-606.99376574,0.00033972,2]
[310184307,1704391869609,-500.0,0.00033972,2]
[310184308,1704391869618,-500.0,0.00033972,2]
[310184309,1704391869628,-1242.78,0.00033972,2]
[310184310,1704391869638,-500.0,0.00033972,2]
[310184311,1704391869647,-1903.27,0.00033972,2]
[310184312,1704391869657,-500.0,0.00033972,2]
[310184313,1704391869667,-605.9,0.00033972,2]
[310184314,1704391869678,-2423.66,0.00033972,2]
[310184315,1704391869689,-500.0,0.00033972,2]
[310184316,1704391869700,-500.0,0.00033972,2]
[310184317,1704391869715,-893.49,0.00033972,2]
[310184318,1704391869726,-500.0,0.00033972,2]
[310184319,1704391869736,-500.0,0.00033972,2]
[310184320,1704391869745,-500.0,0.00033972,2]
[310184321,1704391869755,-500.0,0.00033972,2]
[310184322,1704391869764,-500.0,0.00033972,2]
[310184323,1704391869773,-530.94,0.00033972,2]
[310184324,1704391869783,-2743.96,0.00033972,2]
[310184325,1704391869792,-605.83,0.00033972,2]
[310184326,1704391869803,-964.58,0.00033972,2]
[310184327,1704391869812,-1020.67,0.00033972,2]
[310184328,1704391869821,-500.0,0.00033972,2]
[310184329,1704391869831,-500.0,0.00033972,2]
[310184330,1704391869840,-500.0,0.00033972,2]
[310184331,1704391869849,-529.13,0.00033972,2]
[310184332,1704391869858,-500.0,0.00033972,2]
[310184333,1704391869868,-646.51747909,0.00033972,2]
[310184334,1704391869877,-500.0,0.00033972,2]
[310184335,1704391869887,-4587.67,0.00033972,2]
[310184336,1704391869897,-632.75,0.00033972,2]
[310184337,1704391869906,-500.0,0.00033972,2]
[310184338,1704391869916,-1343.2,0.00033972,2]
[310184339,1704391869926,-500.0,0.00033972,2]
[310184340,1704391869936,-1376.4,0.00033972,2]
[310184341,1704391869947,-500.0,0.00033972,2]
[310184342,1704391869957,-500.0,0.00033972,2]
[310184343,1704391869967,-711.79,0.00033972,2]
[310184344,1704391869978,-194.2731624,0.00033972,2]
[310184345,1704391869988,-500.0,0.00033972,2]
[310184346,1704391869997,-1178.84,0.00033972,2]
[310184347,1704391870009,-500.0,0.00033972,2]
[310184348,1704391870018,-500.0,0.00033972,2]
[310184349,1704391870029,-500.0,0.00033972,2]
[310184350,1704391870040,-500.0,0.00033972,2]
[310184351,1704391870049,-557.27,0.00033972,2]
[310184352,1704391870059,-1041.83,0.00033972,2]
[310184353,1704391870069,-500.0,0.00033972,2]
[310184354,1704391870078,-500.0,0.00033972,2]
[310184355,1704391870088,-500.0,0.00033972,2]
[310184356,1704391870098,-526.09,0.00033972,2]
[310184357,1704391870107,-927.03,0.00033972,2]
[310184358,1704391870117,-500.0,0.00033972,2]
[310184359,1704391870126,-500.0,0.00033972,2]
[310184360,1704391870136,-500.0,0.00033972,2]
[310184361,1704391870146,-500.0,0.00033972,2]
[310184362,1704391870155,-4291.64,0.00033972,2]
[310184363,1704391870165,-500.0,0.00033972,2]
[310184364,1704391870175,-500.0,0.00033972,2]
[310184365,1704391870184,-562.17,0.00033972,2]
[310184366,1704391870194,-500.0,0.00033972,2]
[310184367,1704391870203,-500.0,0.00033972,2]
[310184368,1704391870212,-493.04286322,0.00033972,2]
[310184369,1704391870221,-500.0,0.00033972,2]
[310184370,1704391870231,-576.79,0.00033972,2]
[310184371,1704391870240,-500.0,0.00033972,2]
[310184372,1704391870250,-500.0,0.00033972,2]
[310184373,1704391870259,-330.12554504,0.00033972,2]
[310184374,1704391870269,-500.0,0.00033972,2]
[310184375,1704391870278,-500.0,0.00033972,2]
[310184376,1704391870287,-500.0,0.00033972,2]
[310184377,1704391870297,-755.16,0.00033972,2]
[310184378,1704391870307,-500.0,0.00033972,2]
[310184379,1704391870316,-500.0,0.00033972,2]
[310184380,1704391870329,-690.99,0.00033972,2]
[310184381,1704391870338,-500.0,0.00033972,2]
[310184382,1704391870348,-500.0,0.00033972,2]
[310184383,1704391870358,-500.0,0.00033972,2]
[310184384,1704391870367,-500.0,0.00033972,2]
[310184385,1704391870377,-500.0,0.00033972,2]
[310184386,1704391870386,-654.12,0.00033972,2]
[310184387,1704391870396,-500.0,0.00033972,2]
[310184388,1704391870406,-1200.44,0.00033972,2]
[310184389,1704391870416,-653.66,0.00033972,2]
[310184390,1704391870425,-684.74,0.00033972,2]
[310184391,1704391870436,-628.61,0.00033972,2]
[310184392,1704391870446,-500.0,0.00033972,2]
[310184393,1704391870456,-507.84,0.00033972,2]
[310184394,1704391870468,-622.23,0.00033972,2]
[310184395,1704391870516,-500.0,0.00033972,2]
[310184396,1704391870527,-1255.77,0.00033972,2]
[310184397,1704391870538,-500.0,0.00033972,2]
[310184398,1704391870547,-500.0,0.00033972,2]
[310184399,1704391870558,-500.0,0.00033972,2]
[310184400,1704391870567,-500.0,0.00033972,2]
[310184401,1704391870577,-1377.38,0.00033972,2]
[310184402,1704391870586,-2685.56,0.00033972,2]
[310184403,1704391870596,-500.0,0.00033972,2]
[310184404,1704391870605,-500.0,0.00033972,2]
[310184405,1704391870615,-593.27,0.00033972,2]
[310184406,1704391870624,-500.0,0.00033972,2]
[310184407,1704391870634,-500.0,0.00033972,2]
[310184408,1704391870643,-1194.73,0.00033972,2]
[310184409,1704391870653,-500.0,0.00033972,2]
[310184410,1704391870662,-500.0,0.00033972,2]
[310184411,1704391870672,-1686.86,0.00033972,2]
[310184412,1704391870681,-249.84906494,0.00033972,2]
[310184413,1704391870691,-573.18,0.00033972,2]
[310184414,1704391870701,-500.0,0.00033972,2]
[310184415,1704391870714,-500.0,0.00033972,2]
[310184416,1704391870723,-2139.14,0.00033972,2]
[310184417,1704391870732,-928.63,0.00033972,2]
[310184418,1704391870742,-2176.43,0.00033972,2]
[310184419,1704391870752,-500.0,0.00033972,2]
[310184420,1704391870762,-500.0,0.00033972,2]
[310184421,1704391870772,-631.71,0.00033972,2]
[310184422,1704391870781,-588.14,0.00033972,2]
[310184423,1704391870790,-809.18,0.00033972,2]
[310184424,1704391870867,-774.86,0.00033972,2]
[310184425,1704391870877,-500.0,0.00033972,2]
[310184426,1704391870886,-327.04078257,0.00033975,2]
[310184427,1704391870895,-17712.04716791,0.00033975,2]
[310184428,1704391870905,-475.73036899,0.00033975,2]
[310184429,1704391870914,-300.0,0.00033987,3]
[310184430,1704391870923,-300.0,0.00033987,2]
[310184431,1704391870933,-1000.0,0.00034,4]
[310184432,1704391870942,-800.66648758,0.00034,4]
[310184433,1704391870952,-158.86,0.00034,2]
[310184434,1704391870961,-158.86,0.00034,2]
[310184435,1704391870971,-158.86,0.00034,2]
[310184436,1704391870980,-158.86,0.00034,2]
[310184437,1704391870990,-158.86,0.00034,2]
[310184438,1704391871001,-1093.12899118,0.00034086,6]
[310184439,1704391871011,-158.49,0.00034098,2]
[310184440,1704391871019,-151.0,0.00034145,7]
[310184441,1704391871029,-151.0,0.00034145,7]
[310184442,1704391871038,-203.452004,0.00034145,7]
[310184443,1704391871048,-203.452004,0.00034145,7]
[310184444,1704391871058,-344.83,0.00034184,2]
[310184445,1704391871067,-455.61548329,0.00034242,6]
[310184446,1704391871076,-1305.07,0.00034245,2]
[310184447,1704391871086,-743.73,0.00034245,2]
[310184448,1704391871095,-500.0,0.00034245,2]
[310184449,1704391871104,-500.0,0.00034245,2]
[310184450,1704391871114,-724.23,0.00034245,2]
[310184451,1704391871123,-546.17,0.00034245,2]
[310184452,1704391871133,-604.17,0.00034245,2]
[310184453,1704391871143,-500.0,0.00034246,2]
[310184454,1704391871153,-500.0,0.00034246,2]
[310184455,1704391871162,-500.0,0.00034246,2]
[310184456,1704391871172,-500.0,0.00034246,2]
[310184457,1704391871181,-500.0,0.00034246,2]
[310184458,1704391871190,-500.0,0.00034246,2]
[310184459,1704391871202,-500.0,0.00034246,2]
[310184460,1704391871211,-500.0,0.00034246,2]
[310184461,1704391871220,-500.0,0.00034246,2]
[310184462,1704391871230,-500.0,0.00034246,2]
[310184463,1704391871240,-235.1804907,0.00034246,2]
[310184464,1704391871249,-500.0,0.00034246,2]
[310184465,1704391871259,-500.0,0.00034246,2]
[310184466,1704391871269,-500.0,0.00034246,2]
[310184467,1704391871280,-500.0,0.00034246,2]
[310184468,1704391871289,-500.0,0.00034246,2]
[310184469,1704391871300,-500.0,0.00034246,2]
[310184470,1704391871311,-500.0,0.00034246,2]
[310184471,1704391871321,-500.0,0.00034246,2]
[310184472,1704391871331,-500.0,0.00034246,2]
[310184473,1704391871340,-500.0,0.00034246,2]
[310184474,1704391871348,-500.0,0.00034246,2]
[310184475,1704391871358,-500.0,0.00034246,2]
[310184476,1704391871367,-500.0,0.00034246,2]
[310184477,1704391871376,-500.0,0.00034246,2]
[310184478,1704391871387,-500.0,0.00034246,2]
[310184479,1704391871396,-500.0,0.00034246,2]
[310184480,1704391871405,-500.0,0.00034246,2]
[310184481,1704391871415,-622.63,0.00034246,2]
[310184482,1704391871424,-500.0,0.00034246,2]